lending/lending_fUSD_20241124
["ID","MTS","AMOUNT","RATE_DAILY","PERIOD"]
[343222968,1732482640662,-5000.0,0.0004876,30]
[343222969,1732482640672,-5000.0,0.0004876,10]
[343222970,1732482640681,-176.05,0.0004892,2]
[343222971,1732482640690,-166.81,0.00048968,2]
[343222972,1732482640700,-1020.0,0.00049,30]
[343222973,1732482640709,-30130.0,0.00049,120]
[343222974,1732482640719,-2505.7643037,0.00049,120]
[343222975,1732482640729,-770.0,0.00049238,5]
[343222976,1732482640739,-2555.2317079,0.0004924,15]
[343222977,1732482640748,-5294.66497143,0.00049248,15]
[343222978,1732482640758,-5000.0,0.0004934,120]
[343222979,1732482640767,-24339.70621777,0.00049345,2]
[343222980,1732482640777,-157.112505,0.00049348,120]
[343222981,1732482640787,-10000.0,0.0004944,30]
[343222982,1732482640796,-157.112505,0.00049448,120]
[343222983,1732482640806,-3143.39205645,0.00049624,120]
[343222984,1732482640818,-12210.10619647,0.00049624,120]
[343222985,1732482640831,-6166.97385483,0.00049624,120]
[343222986,1732482640842,-970.42500952,0.00049624,120]
[343222987,1732482640853,-332.5675,0.00049624,120]
[343222988,1732482640864,-22011.70986541,0.00049624,120]
[343222989,1732482640873,-2000.0,0.00049659,120]
[343222990,1732482640883,-500.0,0.00049732,120]
[343222991,1732482640893,-601.33,0.00049732,120]
[343222992,1732482640903,-500.0,0.00049732,120]
[343222993,1732482640912,-189.50915104,0.00049753,30]
[343222994,1732482640920,-150.0,0.00049753,30]
[343222995,1732482640929,-258.94760022,0.00049753,30]
[343222996,1732482640938,-150.0,0.00049753,30]
[343222997,1732482640947,-150.0,0.00049753,30]
[343222998,1732482640956,-150.0,0.00049753,30]
[343222999,1732482640965,-150.0,0.00049753,30]
[343223000,1732482640975,-150.53882837,0.00049753,30]
[343223001,1732482640984,-150.0,0.00049753,30]
[343223002,1732482640994,-256.95750815,0.00049753,30]
[343223003,1732482641003,-150.0,0.00049753,30]
[343223004,1732482641012,-2555.23170788,0.00049758,15]
[343223005,1732482641021,-5294.66497141,0.00049765,15]
[343223006,1732482641031,-189.50915104,0.00049767,30]
[343223007,1732482641040,-163.35,0.00049769,2]
[343223008,1732482641050,-1594.1,0.00049778,120]
[343223009,1732482641059,-1594.1,0.00049778,120]
[343223010,1732482641069,-1594.1,0.00049778,120]
[343223011,1732482641079,-2375.43,0.00049778,120]
[343223012,1732482641088,-2375.43,0.00049778,120]
[343223013,1732482641097,-2375.43,0.00049778,120]
[343223014,1732482641106,-10253.88736967,0.00049778,120]
[343223015,1732482641117,-2212.3116,0.00049778,120]
[343223018,1732482643145,-556.5,0.00048133,60]
[343223019,1732482643156,-3183.66103033,0.00049778,120]
[343223020,1732482643166,-15649.86,0.00049778,120]
[343223021,1732482643175,-11557.68526968,0.00049778,120]
[343223219,1732482645919,-935.58510498,0.00049769,10]
[343223220,1732482645977,-403.81,0.00049769,10]
[343223221,1732482645988,-597.4,0.00049769,10]
[343223222,1732482646000,-264.45489502,0.00049769,10]
[343223223,1732482646009,-694.28510498,0.00049778,120]
[343223224,1732482646095,-3397.88962534,0.00049778,120]
[343223225,1732482646105,-732.99,0.00049778,120]
[343223226,1732482646114,-500.0,0.00049778,120]
[343223227,1732482646124,-732.99,0.00049778,120]
[343223228,1732482646133,-732.99,0.00049778,120]
[343223229,1732482646148,-500.0,0.00049778,120]
[343223230,1732482646157,-500.0,0.00049778,120]
[343223231,1732482646167,-500.0,0.00049778,120]
[343223232,1732482646176,-500.0,0.00049778,120]
[343223233,1732482646186,-500.0,0.00049778,120]
[343223234,1732482646196,-500.0,0.00049778,120]
[343223235,1732482646205,-500.0,0.00049778,120]
[343223236,1732482646216,-500.0,0.00049778,120]
[343223237,1732482646228,-201.29786113,0.00049778,120]
[343223238,1732482646238,-237.24512423,0.00049778,120]
[343223239,1732482646248,-500.0,0.00049778,120]
[343223240,1732482646258,-500.0,0.00049778,120]
[343223241,1732482646268,-500.0,0.00049778,120]
[343223242,1732482646278,-500.0,0.00049778,120]
[343223243,1732482646288,-383.07,0.00049778,120]
[343223244,1732482646298,-500.0,0.00049778,120]
[343223246,1732482646308,-489.73,0.00049778,120]
[343223247,1732482646318,-485.23893866,0.00049778,2]
[343223248,1732482646328,-500.0,0.00049778,2]
[343223249,1732482646340,-500.0,0.00049778,120]
[343223250,1732482646350,-610.23,0.00049778,120]
[343223251,1732482646361,-500.0,0.00049778,120]
[343223252,1732482646370,-500.0,0.00049778,120]
[343223253,1732482646379,-500.0,0.00049778,120]
[343223254,1732482646389,-500.0,0.00049778,120]
[343223255,1732482646399,-500.0,0.00049778,120]
[343223256,1732482646408,-500.0,0.00049778,120]
[343223257,1732482646419,-376.31571826,0.00049778,120]
[343223259,1732483340361,25672.47767351,0.00042,2]
[343223260,1732483398580,500.0,0.00042,120]
[343223261,1732483402778,2000.0,0.00042,120]
[343223262,1732483410984,500.0,0.00042,120]
[343223263,1732483414978,262.102932,0.00042,120]
[343223264,1732483508807,1531438.9915708,0.00013,2]
[343223265,1732483508834,2000000.0,0.00013,2]
[343223266,1732483508862,14184880.61797301,0.00013,2]
[343223267,1732483551990,2000.00000099,9.99e-05,2]
[343223268,1732483677024,5449.47947625,0.000145,3]
[343223269,1732483680554,5376.74697049,0.0004,2]
[343223304,1732483832151,-429.3114982,0.000429,2]
[343223305,1732483832161,-646.0,0.00043,2]
[343223306,1732483832170,-12959.1885018,0.00043,2]
[343223375,1732483838522,-15034.9231789,0.00043,2]
[343223376,1732483838531,-212.97,0.0004461,30]
[343223377,1732483838541,-212.97,0.0004461,30]
[343223378,1732483838552,-212.97,0.0004461,30]
[343223379,1732483838562,-212.97,0.0004461,30]
[343223380,1732483838572,-47376.0408466,0.0004462,2]
[343223381,1732483838581,-212.97,0.0004499,30]
[343223382,1732483838591,-212.97,0.0004499,30]
[343223383,1732483838600,-212.97,0.0004499,30]
[343223384,1732483838609,-5049.73763907,0.00045,2]
[343223392,1732483840045,-343.20237039,0.00045,2]
[343223397,1732483843063,-8039.2,0.00045,2]
[343223402,1732483843122,-1404.80946,0.00045,2]
[343223403,1732483843352,-6617.81947255,0.00045,2]
[343223404,1732483843362,-236.0012555,0.00045,120]
[343223405,1732483843371,-367.14740842,0.00045,60]
[343223406,1732483843382,-275.71690187,0.00045,30]
[343223407,1732483843391,-976.24,0.0004505,10]
[343223408,1732483843401,-212.97,0.0004509,30]
[343223409,1732483843411,-1785.77165563,0.000451,2]
[343223410,1732483843421,-1671.67,0.0004569,10]
[343223411,1732483843430,-212.97,0.0004569,30]
[343223412,1732483843441,-212.97,0.0004569,30]
[343223413,1732483843450,-212.97,0.0004569,30]
[343223414,1732483843459,-212.97,0.0004569,30]
[343223415,1732483843470,-212.97,0.0004569,30]
[343223416,1732483843484,-212.97,0.0004569,30]
[343223417,1732483843494,-5175.7731143,0.000457,120]
[343223418,1732483843522,-1733.1588301,0.000457,120]
[343223434,1732483846120,-1510.60844829,0.000457,120]
[343223435,1732483846299,-44519.50038465,0.000457,120]
[343223436,1732483846310,-212.97,0.00045799,30]
[343223437,1732483846320,-4517.80875666,0.00045809,15]
[343223438,1732483846329,-2044.18536634,0.00045909,15]
[343223439,1732483846338,-200.0,0.00045937,2]
[343223440,1732483846349,-200.0,0.00045945,2]
[343223441,1732483846358,-200.0,0.00045953,2]
[343223442,1732483846367,-231.31,0.00046009,2]
[343223443,1732483846376,-212.97,0.00046199,30]
[343223444,1732483846385,-4517.80875665,0.00046209,15]
[343223445,1732483846395,-2044.1853663,0.00046298,15]
[343223446,1732483846405,-212.97,0.000466,30]
[343223447,1732483846416,-4517.80875665,0.0004661,15]
[343223448,1732483846427,-2044.1853663,0.00046687,15]
[343223449,1732483846437,-180.394,0.0004674,78]
[343223450,1732483846447,-212.97,0.0004689,30]
[343223451,1732483846456,-212.97,0.0004689,30]
[343223452,1732483846467,-212.97,0.0004689,30]
[343223453,1732483846480,-39084.33400779,0.000469,2]
[343223456,1732483846490,-2231.90244683,0.00047,120]
[343223458,1732483846499,-4517.80875665,0.0004701,15]
[343223459,1732483846509,-2044.1853663,0.00047077,15]
[343223460,1732483846520,-1000.0,0.00047322,8]
[343223461,1732483846685,-500.0,0.00047322,2]
[343223462,1732483846696,-356.48394907,0.00047322,2]
[343223463,1732483846707,-433.37,0.00047322,2]
[343223464,1732483846717,-500.0,0.00047322,2]
[343223465,1732483846728,-500.0,0.00047322,2]
[343223466,1732483846737,-500.0,0.00047322,2]
[343223467,1732483846747,-500.0,0.00047322,2]
[343223468,1732483846757,-348.02969579,0.00047322,2]
[343223469,1732483846766,-500.0,0.00047322,2]
[343223470,1732483846775,-1929.0,0.00047323,2]
[343223471,1732483846785,-3751.0,0.00047323,2]
[343223472,1732483846794,-1262.0,0.00047323,2]
[343223473,1732483846804,-980.0,0.00047323,2]
[343223474,1732483846814,-3518.0,0.00047323,2]
[343223475,1732483846823,-688.71,0.00047323,2]
[343223476,1732483846833,-1258.0,0.00047323,2]
[343223477,1732483846842,-151.0,0.00047323,2]
[343223478,1732483846851,-5946.0,0.00047323,2]
[343223479,1732483846861,-565.0,0.00047323,2]
[343223480,1732483846871,-13671.0,0.00047323,2]
[343223481,1732483846880,-1163.0,0.00047323,2]
[343223482,1732483846890,-4517.80875665,0.0004741,15]
[343223483,1732483846900,-4173.60701558,0.00047419,2]
[343223484,1732483846909,-2044.1853663,0.00047466,15]
[343223485,1732483846922,-1728.65542228,0.000476,2]
[343223486,1732483846931,-163427.30018316,0.000476,30]
[343223487,1732483846941,-359.17937409,0.00047719,2]
[343223488,1732483846951,-4517.80875665,0.00047811,15]
[343223489,1732483846960,-3734.59,0.00047818,30]
[343223490,1732483846971,-2044.1853663,0.00047855,15]
[343223491,1732483846980,-250.0,0.00047968,120]
[343223492,1732483846989,-1000.0,0.00048021,2]
[343223493,1732483846999,-736.0,0.00048029,30]
[343223494,1732483847009,-250.0,0.00048048,120]
[343223495,1732483847018,-200.0,0.00048078,2]
[343223496,1732483847027,-222.34,0.00048078,120]
[343223497,1732483847037,-709.01,0.00048099,2]
[343223498,1732483847047,-593.54,0.000481,2]
[343223499,1732483847058,-1000.0,0.00048121,2]
[343223500,1732483847068,-279.5,0.00048133,60]
[343223501,1732483847078,-200.0,0.00048135,2]
[343223502,1732483847087,-4517.80875665,0.00048211,15]
[343223503,1732483847097,-59.14537389,0.00048244,15]
[343223532,1732485032181,-156.02,0.00041096,2]
[343223533,1732485032191,-357.97,0.00045,3]
[343223534,1732485032202,-500.0,0.00045,3]
[343223535,1732485032211,-49.347,0.00045,3]
[343223536,1732485032478,-450.653,0.00045,3]
[343223537,1732485032486,-112.28852736,0.00045278,2]
[343223538,1732485032543,-137.29147264,0.00045278,2]
[343223539,1732485032552,-1000.0,0.00046991,2]
[343223540,1732485032560,-1593.99331236,0.00047028,2]
[343223544,1732485040470,-706.44999,0.00047028,2]
[343223545,1732485040482,-555.710001,0.00047028,2]
[343223546,1732485040501,-991.5032728,0.00047028,2]
[343223554,1732485044261,-500.0,0.00047028,2]
[343223555,1732485044271,-3444.63714357,0.00047028,2]
[343223556,1732485044326,-3610.30891294,0.00047028,2]
[343223557,1732485044391,-3030.28952547,0.00047028,2]
[343223558,1732485044456,-2245.02864094,0.00047028,2]
[343223559,1732485046381,-786.89888188,0.00047028,2]
[343223560,1732485046392,-336.39000002,0.00047028,2]
[343223566,1732485161170,150.0,0.0004,2]
[343223568,1732485658039,582.0,0.000268,2]
[343223569,1732485658669,524.0,0.000268,2]
[343223578,1732486156336,157.6,0.0004,2]
[343223579,1732486177342,500.0,0.0004,2]
[343223588,1732486199993,200.0,0.0004,2]
[343223592,1732486232620,-237.1,0.00043079,2]
[343223593,1732486232632,-3087.0,0.00043541,30]
[343223594,1732486232643,-168.992,0.00044597,71]
[343223595,1732486232654,-199.159,0.00044597,71]
[343223596,1732486232664,-500.0,0.00044997,2]
[343223597,1732486232674,-8000.0,0.00045,2]
[343223598,1732486232685,-200.0,0.00045,20]
[343223599,1732486232695,-250.0,0.00045039,120]
[343223600,1732486232706,-30456.77815035,0.00045105,12]
[343223601,1732486232720,-438.96713979,0.00045105,12]
[343223602,1732486232733,-747.3208865,0.00045105,12]
[343223603,1732486236536,-970.0,0.00045105,12]
[343223627,1732486238441,-3341.41609091,0.00045105,12]
[343223628,1732486238455,-1430.81678242,0.00045105,12]
[343223629,1732486238789,-969.486574,0.00045105,12]
[343223630,1732486239312,-469178.3069582,0.00045105,12]
[343223631,1732486239591,-28311.34403663,0.00045105,12]
[343223639,1732486240414,-806.17,0.00045095,10]
[343223640,1732486240425,-10595.83134817,0.00045105,12]
[343223642,1732486240436,-9695.14037837,0.00045105,12]
[343223643,1732486240446,-792.98218352,0.00045105,12]
[343223644,1732486240458,-1991.58767056,0.00045105,12]
[343223645,1732486240469,-2222.09876582,0.00045105,12]
[343223646,1732486240570,-25299.62527731,0.00045105,12]
[343223647,1732486240582,-1679.83648371,0.00045105,12]
[343223648,1732486240614,-848.13780506,0.00045105,12]
[343223649,1732486240658,-1025.693231,0.00045105,12]
[343223664,1732486245085,-311.9228,0.00045005,2]
[343223665,1732486245099,-5.13966574,0.00045005,2]
[343223666,1732486245109,-771.60735409,0.00045105,12]
[343223667,1732486245138,-4357.08,0.00045105,12]
[343223668,1732486245355,-10024.23745273,0.00045105,12]
[343223669,1732486245367,-1073.399997,0.00045105,12]
[343223670,1732486245390,-306.06,0.00045105,12]
[343223731,1732486246512,-1206.22661779,0.00045105,12]
[343223732,1732486246539,-1290.15000025,0.00045105,12]
[343223733,1732486246553,-2435.88406,0.00045105,12]
[343223734,1732486246566,-1679.6025,0.00045105,12]
[343223741,1732486562506,626.0,0.000268,2]
[343223746,1732486882827,274.90853695,0.00038,120]
[343223747,1732486883957,198.359,0.00038017,2]
[343223748,1732486886255,158.859,0.00038017,2]
[343223749,1732486891144,274.90853695,0.0004,120]
[343223750,1732486936307,310.17845507,0.000398,2]
[343223751,1732486940752,289.59,0.00041,120]
[343223757,1732487108649,14993.6246904,0.0001,2]
[343223758,1732487112219,186.97684553,0.00025,2]
[343223759,1732487117951,4057.77756132,0.0003143,4]
[343223760,1732487131851,720.7597827,1e-06,2]
[343223761,1732487153493,2208.0,0.00015,10]
[343223762,1732487155830,208.54292503,0.00035,2]
[343223763,1732487228280,206.04525502,0.000225,2]
[343223764,1732487247167,54212.35901058,1e-06,7]
[343223765,1732487257916,163.63,0.00035288,2]
[343223766,1732487265641,315949.40273139,0.00028,4]
[343223767,1732487272623,1819.35696687,0.00036,90]
[343223768,1732487277833,163311.03426447,0.000145,3]
[343223769,1732487279807,3519236.56127639,0.00013,2]
[343223786,1732487307323,20960.41827733,0.0004,7]
[343223787,1732487312603,2250.96496359,0.00022,2]
[343223788,1732487312659,213.18630277,0.0001,2]
[343223789,1732487315636,5031.02974296,0.000232,2]
[343223790,1732487315717,172.28017784,0.00036,2]
[343223791,1732487316055,1733.09317554,0.0003,2]
[343223792,1732487316309,2603.81868915,0.0001,2]
[343223793,1732487316349,266.88394085,0.0002301,2]
[343223794,1732487316455,566.60093915,0.0002322,2]
[343223795,1732487316482,1059.82892276,0.0002421,2]
[343223796,1732487316605,519.21804413,0.0002604,2]
[343223797,1732487316667,491.82857037,0.0003,2]
[343223798,1732487316969,226.61732218,0.0002999,2]
[343223799,1732487317017,5389.0,0.00015,2]
[343223800,1732487317836,496.54998801,0.00015,2]
[343223801,1732487317997,5606.42017242,0.00018,2]
[343223802,1732487318778,987.37310091,0.00027,2]
[343223803,1732487318836,1016.99170128,0.0003,2]
[343223804,1732487318874,814.59606204,0.00013,2]
[343223805,1732487318912,1028.43613301,0.00018,2]
[343223807,1732487319319,8005.65707177,0.0001,2]
[343223808,1732487319475,295.89361907,0.000151,2]
[343223809,1732487319798,255.46109286,0.000107,2]
[343223810,1732487320106,1220.39198149,0.0003,2]
[343223811,1732487320172,482.96795454,0.000154,2]
[343223812,1732487320360,1139.19224678,0.00021,2]
[343223813,1732487320482,2047.03513439,0.0002,2]
[343223814,1732487320650,187.97323575,0.00021,2]
[343223815,1732487320914,919.98187034,0.0004,2]
[343223818,1732487322119,150.0,9e-05,3]
[343223819,1732487322146,300.0,0.0003,3]
[343223840,1732487431778,-817.92454127,0.00041,7]
[343223841,1732487431787,-2093.54000354,0.00041,2]
[343223842,1732487431798,-174.95883863,0.00042017,120]
[343223843,1732487431807,-550.0,0.00042117,5]
[343223844,1732487431816,-6435.45236295,0.00042118,30]
[343223845,1732487435646,-495.249995,0.00042118,30]
[343223846,1732487435662,-2331.29764205,0.00042118,30]
[343223847,1732487435675,-280.63257895,0.00042118,30]
[343223866,1732487437728,-219.36742105,0.00042118,30]
[343223867,1732487437740,-269.15,0.00042813,2]
[343223868,1732487437752,-549.8170739,0.00043,120]
[343223869,1732487437763,-152.0,0.0004374,3]
[343223870,1732487437775,-177.87,0.00044032,120]
[343223871,1732487437786,-446.01272212,0.00044175,5]
[343223872,1732487437797,-143.12022993,0.00044176,2]
[343223873,1732487437830,-9909.69919234,0.00044176,2]
[343223874,1732487438073,-1759.29391106,0.00044176,2]
[343223875,1732487438086,-29708.44666667,0.00044176,2]
[343223876,1732487438096,-198.359,0.00044443,2]
[343223877,1732487438107,-152.26,0.00044486,120]
[343223878,1732487438118,-250.0,0.0004459,120]
[343223879,1732487438131,-299.99,0.0004459,120]
[343223880,1732487438147,-999.99,0.0004459,2]
[343223881,1732487438158,-284.08,0.00044617,2]
[343223882,1732487438167,-52.36213122,0.00044617,2]
[343223884,1732487438184,-1902.82395401,0.00044617,2]
[343223909,1732487439520,-1006.54478606,0.00044617,2]
[343223910,1732487439533,-2266.56205887,0.00044617,2]
[343223911,1732487439753,-501.566087,0.00044617,2]
[343223912,1732487439779,-500.0,0.0004374,3]
[343223913,1732487439790,-190.19311695,0.00044617,2]
[343223914,1732487439803,-3781.901572,0.00044617,2]
[343223947,1732487442601,-500.0,0.0004459,120]
[343223949,1732487442612,-769.628188,0.00044617,2]
[343223950,1732487442687,-13428.41810589,0.00044617,2]
[343223951,1732487442699,-1000.0,0.00044619,2]
[343223952,1732487442711,-151.66654,0.0004465,24]
[343223953,1732487442723,-161.77,0.0004465,30]
[343223954,1732487442733,-808.89,0.0004465,30]
[343223955,1732487442748,-1125.94,0.0004465,10]
[343223956,1732487442757,-1071.04,0.0004465,10]
[343223957,1732487442767,-892.53,0.0004465,10]
[343223958,1732487442985,-199.16,0.00044659,71]
[343223959,1732487442996,-5467.33535411,0.0004466,2]
[343223960,1732487443007,-14487.0875,0.0004466,2]
[343223961,1732487443023,-4540.0,0.0004466,2]
[343223981,1732487445841,-978.39,0.0004466,2]
[343223982,1732487445854,-988.07073292,0.0004466,2]
[343223983,1732487445865,-1905.80220191,0.0004466,2]
[343223984,1732487445876,-404.1953944,0.0004466,2]
[343223997,1732487446082,-743.78,0.0004465,10]
[343223999,1732487446092,-2406.49991702,0.0004466,2]
[343224059,1732487446686,-39059.74199117,0.0004466,2]
[343224062,1732487446697,-379.71008372,0.0004466,2]
[343224064,1732487446708,-1104.89183922,0.0004466,2]
[343224069,1732487446753,-6417.7600647,0.0004466,2]
[343224072,1732487446765,-2449.77208,0.0004466,2]
[343224074,1732487446777,-7561.86528616,0.0004466,2]
[343224076,1732487446788,-1657.21148328,0.0004466,2]
[343224078,1732487446800,-2538.49785764,0.0004466,2]
[343224080,1732487446810,-1822.76477236,0.000447,15]
[343224084,1732487446838,-897.77739682,0.000447,15]
[343224086,1732487446848,-500.0,0.00044799,31]
[343224088,1732487446857,-155.17421119,0.00044799,31]
[343224090,1732487446867,-168.18188453,0.00044799,31]
[343224092,1732487446876,-269.5164474,0.000448,15]
[343224305,1732487647794,193.69,0.00023289,2]
[343224307,1732487703120,780.06223384,0.00027,120]
[343224309,1732488278577,500.98812832,0.00036,120]
[343224310,1732488330457,1996.46,0.00041,120]
[343224311,1732488507604,250.0,0.00031,2]
[343224312,1732488508682,300.0,0.00033,2]
[343224313,1732488509761,350.0,0.00035,2]
[343224314,1732488510838,400.0,0.00037,2]
[343224315,1732488511900,450.0,0.00039,2]
[343224331,1732488631959,-156.02,0.00041096,2]
[343224332,1732488631970,-318.21,0.00043173,2]
[343224333,1732488631982,-1000.055,0.000438,15]
[343224334,1732488631991,-2546.32081953,0.00044069,2]
[343224335,1732488632003,-395.86828338,0.00044069,2]
[343224336,1732488632013,-8412.95375406,0.00044069,2]
[343224337,1732488632022,-200.0,0.00044079,2]
[343224338,1732488632032,-200.0,0.00044084,2]
[343224339,1732488632041,-2942.18910291,0.00044086,2]
[343224340,1732488632050,-2942.18910291,0.00044091,2]
[343224341,1732488632059,-326.10316881,0.00044091,2]
[343224342,1732488632068,-326.10316881,0.00044093,2]
[343224343,1732488632078,-2883.62080749,0.00044118,2]
[343224344,1732488632087,-2942.18910291,0.00044132,2]
[343224346,1732488632095,-326.10316881,0.00044135,2]
[343224348,1732488632104,-326.10316881,0.00044135,2]
[343224350,1732488632114,-200.0,0.00044145,2]
[343224352,1732488632123,-326.10316881,0.0004415,2]
[343224354,1732488632132,-8412.95375406,0.00044155,2]
[343224356,1732488632141,-2883.62080749,0.00044156,2]
[343224358,1732488632150,-2883.62080749,0.00044157,2]
[343224360,1732488632159,-8412.95375406,0.00044158,2]
[343224361,1732488632167,-2942.18910291,0.00044158,2]
[343224363,1732488632176,-2883.62080749,0.0004416,2]
[343224365,1732488632185,-200.0,0.00044161,2]
[343224367,1732488632194,-2942.18910291,0.00044161,2]
[343224369,1732488632203,-2883.62080749,0.00044163,2]
[343224371,1732488632212,-8412.95375406,0.00044164,2]
[343224372,1732488632222,-2883.62080749,0.00044167,2]
[343224373,1732488632231,-200.0,0.00044176,2]
[343224375,1732488632240,-8412.95375406,0.00044179,2]
[343224377,1732488632249,-8412.95375406,0.00044181,2]
[343224379,1732488632258,-326.10316881,0.0004419,2]
[343224381,1732488632267,-200.0,0.00044196,2]
[343224383,1732488632276,-1051.64381686,0.000449,20]
[343224385,1732488632285,-6574.39176971,0.0004495,2]
[343224455,1732488639805,-510.6096,0.0004495,2]
[343224456,1732488639852,-467.94744892,0.0004495,2]
[343224457,1732488639903,-378.99999999,0.0004495,2]
[343224474,1732488643992,-537.35,0.0004495,2]
[343224475,1732488644004,-3230.91675849,0.0004495,2]
[343224476,1732488644039,-768.66442289,0.0004495,2]
[343224477,1732488644048,-151.66655,0.0004495,25]
[343224478,1732488644057,-351.66902711,0.0004495,2]
[343224479,1732488644069,-148.33097289,0.0004495,2]
[343224480,1732488644078,-250.0,0.00044969,120]
[343224481,1732488644087,-1000.0,0.0004498,2]
[343224482,1732488644097,-30.01902711,0.00045,20]
[343224499,1732488645784,-329.98097289,0.00045,20]
[343224500,1732488645795,-261.21600509,0.00045,120]
[343224501,1732488645808,-225.75399491,0.00045,120]
[343224502,1732488645819,-160.8,0.00045078,120]
[343224503,1732488645829,-84.39956218,0.00045094,120]
[343224504,1732488645841,-125.94043782,0.00045094,120]
[343224505,1732488645851,-152.26,0.00045199,120]
[343224506,1732488645862,-318.21,0.00045437,2]
[343224507,1732488645872,-169.95526303,0.0004551,120]
[343224508,1732488645910,-243.49473697,0.0004551,120]
[343224509,1732488645920,-3750.0,0.000456,120]
[343224510,1732488645931,-214.54865732,0.000456,120]
[343224511,1732488645947,-800.0,0.000456,120]
[343224512,1732488646036,-2910.82038016,0.000456,120]
[343224513,1732488646048,-384.7238343,0.000456,120]
[343224516,1732488646208,-689.90712822,0.000456,120]
[343224518,1732488646217,-3750.0,0.000456,120]
[343224519,1732488646226,-5000.0,0.00045644,120]
[343224520,1732488646235,-3750.0,0.00045655,120]
[343224521,1732488646244,-5000.0,0.00045688,120]
[343224522,1732488646253,-3750.0,0.0004571,120]
[343224523,1732488646262,-5000.0,0.00045732,120]
[343224524,1732488646271,-3750.0,0.00045765,120]
[343224525,1732488646280,-5000.0,0.00045776,120]
[343224526,1732488646289,-5000.0,0.0004582,120]
[343224527,1732488646298,-1777.39,0.00045864,120]
[343224528,1732488646307,-172.97,0.00045994,2]
[343224529,1732488646316,-687.27134238,0.00046,120]
[343224530,1732488646326,-2243.6587994,0.00046,4]
[343224531,1732488646335,-619.81,0.0004619,10]
[343224532,1732488646343,-516.51,0.0004619,10]
[343224533,1732488646352,-44946.2212,0.000462,2]
[343224534,1732488646362,-176.05,0.00046286,2]
[343224535,1732488646372,-2448.48795219,0.000463,15]
[343224536,1732488646381,-5000.0,0.00046348,120]
[343224537,1732488646390,-157.112506,0.00046348,120]
[343224538,1732488646399,-10019.6899,0.0004636,2]
[343224539,1732488646409,-1444.00217845,0.0004636,15]
[343224540,1732488646418,-19272.473,0.00046375,2]
[343224541,1732488646427,-200.0,0.000464,16]
[343224542,1732488646436,-161.112506,0.00046448,120]
[343224543,1732488646445,-659.9162,0.0004646,2]
[343224544,1732488646455,-26626.2267,0.0004647,2]
[343224545,1732488646464,-2500.0,0.0004647,2]
[343224546,1732488646473,-188807.23252935,0.00046475,12]
[343224551,1732488670783,702.0,0.000255,2]
[343224555,1732489092414,151.0,0.0003,120]
[343224556,1732489243863,285.4681439,0.00038,120]
[343224557,1732489252159,285.4681439,0.0004,120]
[343224558,1732489274057,632.0,0.000255,2]
[343224559,1732489277228,569.0,0.000255,2]
[343224563,1732489703315,151.0,0.0003,120]
[343224564,1732489703895,151.0,0.00031315,120]
[343224565,1732489704495,151.0,0.0003263,120]
[343224566,1732489705076,151.0,0.00033945,120]
[343224567,1732489705649,151.0,0.0003526,120]
[343224568,1732489706234,151.0,0.00036575,120]
[343224569,1732489706828,151.0,0.0003789,120]
[343224570,1732489707399,151.0,0.00039205,120]
[343224571,1732489707980,151.0,0.00040521,120]
[343224591,1732489832097,-189.4,0.00041096,2]
[343224592,1732489832107,-178.13013037,0.00041096,2]
[343224593,1732489832116,-151.0,0.00041836,120]